{"text_format":"1","workbook":"xlsx","n_sheets":1,"sheets":["ورقة2"],"not_rendered":{"charts":0,"images":0,"macros":1,"external_links":0,"defined_names":0,"comments":0,"pivot_tables":0},"unopened":[],"bounds":{"document_bytes":16777216,"sheet_cells":100000,"rows_first":2000,"rows_last":500,"rows_between":2000,"halvings":0,"cell_chars":16384,"cell_head_chars":4096},"cells_cut":0,"cells_raw":0,"read":"whole","date_system":"1900"}

{"sheet":"ورقة2","index":0,"n_rows":20,"n_cols":20,"rows_kept":20,"cut":false,"hidden":false,"merged":[[1,1,1,2],[1,3,1,4],[1,5,1,7]]}
[{"$f":"SUM(A4:A3944)","v":3},1,0,1,0,1,0,0,1,0,1,0,1,0,1,0,1,1]
["م",null,null,null,null,null,null,null,null,null,null,null,null,null,null,null,null,null,"صحة العدد","شرط"]
[0,1,2,1,2,1,2,3,1,2,3,4,5,6,7,8,9,null,"صحة العدد","شرط"]
[1,null,null,null,null,null,null,null,null,null,null,null,null,null,null,null,null,1,{"$f":"COUNTA(B4:R4)","v":1},1]
[null,1,null,1,null,1,null,null,1,null,1,null,1,null,1,null,1,null,{"$f":"COUNTA(B5:R5)","v":8}]
[null,null,null,null,null,null,null,null,null,null,null,null,null,null,null,null,null,null,0]
[null,null,null,null,null,null,null,null,null,null,null,null,null,null,null,null,null,null,0,""]
[2,null,null,null,null,null,null,null,null,null,null,null,null,null,null,null,null,null,0,1]
[null,null,null,null,null,null,null,null,null,null,null,null,null,null,null,null,null,null,0]
[null,null,null,null,null,null,null,null,null,null,null,null,null,null,null,null,null,null,0,""]
[null,null,null,null,null,null,null,null,null,null,null,null,null,null,null,null,null,null,0,""]
[null,null,null,null,null,null,null,null,null,null,null,null,null,null,null,null,null,null,0,""]
[null,null,null,null,null,null,null,null,null,null,null,null,null,null,null,null,null,null,0,""]
[null,null,null,null,null,null,null,null,null,null,null,null,null,null,null,null,null,null,0,""]
[null,null,null,null,null,null,null,null,null,null,null,null,null,null,null,null,null,null,0,""]
[null,null,null,null,null,null,null,null,null,null,null,null,null,null,null,null,null,null,0,""]
[null,null,null,null,null,null,null,null,null,null,null,null,null,null,null,null,null,null,0,""]
[null,null,null,null,null,null,null,null,null,null,null,null,null,null,null,null,null,null,0,""]
[null,null,null,null,null,null,null,null,null,null,null,null,null,null,null,null,null,null,0,""]
[null,null,null,null,null,null,null,null,null,null,null,null,null,null,null,null,null,null,0,""]